Cogmind - Beta 12 @@@ ROGUE MODE // 2023.10.27 @ 18:05:48 Player: FrostySpirit Result: Destroyed by H-61 Shepherd with Heavy Assault Cannon Performance ------------- Evolutions (2) 1000 Regions Visited (3) 600 Robots Destroyed (2) 10 Value Destroyed (2) 2 Prototype IDs (0) 0 Alien Tech Used (0) 0 Bonus (470) 470 TOTAL SCORE: 2082 Bonus ------- Pacifist 470 Cogmind --------- Core Integrity 0/550 Matter 300/300 Energy 100/100 System Corruption 0% Temperature Cool (0) Movement Core (50) Location -8/Materials Parts ------- > --- POWER (2) -------- (None) > --- PROPULSION (3) --- (None) > --- UTILITY (4) ------ (None) > --- WEAPON (2) ------- (None) > --- INVENTORY (5) ---- Light Ion Engine Light Treads Cesium-ion Thruster Small Storage Unit System Restoration Module Peak State ------------ > --- POWER ------------ Ion Engine Nuclear Core > --- PROPULSION ------- Improved Carbon-fiber Leg Improved Carbon-fiber Leg Improved Carbon-fiber Leg > --- UTILITY ---------- Medium Storage Unit Improved Medium Armor Plating Improved Medium Armor Plating System Restoration Module > --- WEAPON ----------- Assault Rifle Autogun > --- INVENTORY -------- Light Ion Engine Light Treads Light Treads Cesium-ion Thruster Cesium-ion Thruster Small Storage Unit Large Storage Unit System Restoration Module Welding Torch [Rating: 33] Favorites ----------- Power Ion Engine Engine Ion Engine Power Core Nuclear Core Propulsion Improved Carbon-fiber Leg Leg Improved Carbon-fiber Leg Wheel Compact Wheel Flight Unit Cesium-ion Thruster Utility Medium Storage Unit Device Terrain Scanner Storage Medium Storage Unit Protection Improved Medium Armor Plating Weapon Autogun Energy Gun EM Pulse Gun Ballistic Gun Autogun Build | -11 -10 -9 -8 ------- Run | Jun Mat Mat Mat Slots Evolved 4 | . . 2 2 Power 1 | . . . 1 Propulsion 1 | . . . 1 Utility 2 | . . 2 . Weapon . | . . . . Parts Attached 25 | 8 . 9 8 Power 4 | 2 . 1 1 Engine 3 | 2 . . 1 Core 1 | . . 1 . Reactor . | . . . . Propulsion 9 | 2 . 4 3 Treads . | . . . . Leg 5 | . . 2 3 Wheel 2 | 2 . . . Hover . | . . . . Flight 2 | . . 2 . Utility 7 | 1 . 3 3 Device 2 | . . 1 1 Storage 2 | 1 . 1 . Processor . | . . . . Hackware . | . . . . Protection 3 | . . 1 2 Artifact . | . . . . Weapon 5 | 3 . 1 1 Energy Gun 1 | 1 . . . Energy Cannon . | . . . . Ballistic Gun 4 | 2 . 1 1 Ballistic Cannon . | . . . . Launcher . | . . . . Special Weapon . | . . . . Impact Weapon . | . . . . Slashing Weapon . | . . . . Piercing Weapon . | . . . . Special Melee Weapon . | . . . . Unidentified Prototypes . | . . . . Parts Lost 12 | . . 3 9 Power 2 | . . . 2 Propulsion 3 | . . . 3 Utility 4 | . . 2 2 Weapon 3 | . . 1 2 Highest Loss Streak 9 | . . 2 9 To Critical Strikes . | . . . . Average Slot Usage (%) 75 | . 85 73 73 Engine 7 | . 14 5 6 Core 5 | . . 5 7 Leg 11 | . . 10 21 Wheel 10 | . 28 11 . Device 4 | . . 4 5 Storage 10 | . 14 11 8 Protection 7 | . . 7 12 Energy Gun 6 | . 14 7 . Ballistic Gun 11 | . 14 11 11 Naked Turns 10 | . . . 10 Heaviest Build 42 | 14 14 30 42 Greatest Support 54 | 26 26 26 54 Greatest Overweight (x) 7 | 2 . 5 7 Average Overweight (x) . | . . . . Largest Inventory Capacity 10 | 8 8 10 10 Average Capacity 9 | 7 8 9 9 Most Carried 10 | 6 7 10 10 Average Carried 8 | 2 6 9 9 Final Capacity 10 | 8 8 10 5 Final Carried 10 | 6 7 10 5 Class Distribution -------------------- 100% | Mutant Dominant Class ---------------- Mutant | -10/Materials Mutant | -9/Materials Mutant | -8/Materials Resources | -11 -10 -9 -8 ----------- Run | Jun Mat Mat Mat Matter Collected 416 | 229 . . 187 Remotely . | . . . . Salvage Created 46 | . . . 46 Parts 3 | . . . 3 Haulers Intercepted . | . . . . Recyclers Shooed . | . . . . Parts Field Recycled . | . . . . Retrieved Matter . | . . . . Parts Self-Destructed . | . . . . Prevented . | . . . . Kills | -11 -10 -9 -8 ------- Run | Jun Mat Mat Mat Combat Hostiles Destroyed . | . . . . Classes Destroyed 1 | . . . 1 Worker 2 | . . . 2 Best Kill Streak 1 | . . . 1 Combat Bots Only . | . . . . Max Kills in Single Turn 1 | . . . 1 Gunslinging . | . . . . Exploded . | . . . . Melee . | . . . . Uniques/NPCs Destroyed . | . . . . Combat | -11 -10 -9 -8 -------- Run | Jun Mat Mat Mat Damage Taken 2376 | . 76 563 1737 Core 709 | . 21 89 599 Absorbed by Shields . | . . . . Core Remaining (%) 89 | 100 91 77 . Volleys Fired 1 | . . 1 . Largest 2 | . . 2 . Hottest 63 | . . 63 . Shots Fired 2 | . . 2 . Gun 2 | . . 2 . Cannon . | . . . . Launcher . | . . . . Special . | . . . . Kinetic 1 | . . 1 . Thermal . | . . . . Explosive . | . . . . Electromagnetic 1 | . . 1 . Robot Hit Streak 1 | . . 1 . Robot Miss Streak 1 | . . 1 . Penetration Max . | . . . . Secondary Targets . | . . . . Shots Hit Robots 1 | . . 1 . Core Hits 4 | . . 1 3 Critical Kills . | . . . . Critical Parts Destroyed . | . . . . Critical Strikes . | . . . . Melee Attacks . | . . . . Impact . | . . . . Slashing . | . . . . Piercing . | . . . . Sneak Attacks . | . . . . Combat Hostiles . | . . . . Follow-up Attacks . | . . . . Damage Inflicted 119 | . . 21 98 Guns 14 | . . 14 . Cannons . | . . . . Explosions . | . . . . Melee . | . . . . Ramming 105 | . . 7 98 Kinetic 14 | . . 14 . Thermal . | . . . . Explosive . | . . . . Electromagnetic . | . . . . Impact . | . . . . Slashing . | . . . . Piercing . | . . . . Highest Corruption . | . . . . Average Corruption . | . . . . Corruption Purged . | . . . . Corruption Blocked . | . . . . Overload Shots . | . . . . Overflow Damage . | . . . . Projectiles . | . . . . Explosions . | . . . . Melee . | . . . . Knockbacks 1 | . . . 1 Impact 1 | . . . 1 Kinetic . | . . . . Secondary . | . . . . Self-Inflicted Damage . | . . . . Shots . | . . . . Rammed . | . . . . Targets Rammed 16 | . . 1 15 Kicked 16 | . . 1 15 Crushed . | . . . . Highest Temperature 22 | . . 22 21 Average Temperature 10 | . . 10 9 Received Heat Transfer 906 | . . 267 639 Siege Activations . | . . . . Robots Corrupted . | . . . . Combat Hostiles . | . . . . Parts Fried . | . . . . Impact Corruptions . | . . . . Robots Melted . | . . . . Combat Hostiles . | . . . . Parts Melted . | . . . . Heat Transferred . | . . . . Parts Sabotaged . | . . . . Parts Stolen . | . . . . Parts Stripped . | . . . . Power Chain Reactions . | . . . . Missiles Intercepted . | . . . . Alert | -11 -10 -9 -8 ------- Run | Jun Mat Mat Mat Peak Influence 104 | . 35 79 104 Initial 24 | . . 14 24 Average 35 | . 7 47 43 Maximum Alert Level . | . . . . Low Security (%) 100 | 100 100 100 100 Level 1 . | . . . . Level 2 . | . . . . Level 3 . | . . . . Level 4 . | . . . . Level 5 . | . . . . High Security . | . . . . Max Security . | . . . . Squads Dispatched 4 | . . 2 2 Investigation . | . . . . Extermination . | . . . . Reinforcement 4 | . . 2 2 Assault . | . . . . Garrison . | . . . . Intercept . | . . . . Searches Triggered . | . . . . Construction Impeded . | . . . . Haulers Reinforced . | . . . . Active Scanning Responses . | . . . . Cargo Convoy Interrupts . | . . . . Stealth | -11 -10 -9 -8 --------- Run | Jun Mat Mat Mat Distress Signals 3 | . 1 1 1 Communications Jammed . | . . . . Distress Signals . | . . . . Times Spotted 37 | . 4 11 22 Peak Tracking Total 18 | . 5 5 18 Tactical Retreats 3 | . . 1 2 Traps | -11 -10 -9 -8 ------- Run | Jun Mat Mat Mat Traps Triggered 1 | . . . 1 Indirectly . | . . . . Trap Hack Attempts . | . . . . Triggered . | . . . . Disarmed . | . . . . Reprogrammed . | . . . . Reused . | . . . . Traps Extracted . | . . . . Installed . | . . . . Triggered . | . . . . Machines | -11 -10 -9 -8 ---------- Run | Jun Mat Mat Mat Machines Disabled . | . . . . Max in Single Turn . | . . . . Machines Repaired . | . . . . Machines Sabotaged . | . . . . Overloaded Fab Kills . | . . . . Hacking | -11 -10 -9 -8 --------- Run | Jun Mat Mat Mat Machines Accessed 3 | . 2 1 . Terminals 3 | . 2 1 . Fabricators . | . . . . Repair Stations . | . . . . Recycling Units . | . . . . Scanalyzers . | . . . . Garrison Access . | . . . . Total Hacks 7 | . 4 3 . Successful 4 | . 2 2 . Failed 3 | . 2 1 . Catastrophic . | . . . . Database Lockouts . | . . . . Manual . | . . . . Terminals 7 | . 4 3 . Fabricators . | . . . . Repair Stations . | . . . . Recycling Units . | . . . . Scanalyzers . | . . . . Garrison Access . | . . . . Terminal Hacks 4 | . 2 2 . Branch Access Points 1 | . 1 . . Terminal Index 1 | . 1 . . Alert Level 1 | . . 1 . Recall Reinforcements 1 | . . 1 . Fabricator Hacks . | . . . . Repair Station Hacks . | . . . . Recycling Unit Hacks . | . . . . Scanalyzer . | . . . . Garrison Access Hacks . | . . . . Unauthorized Hacks . | . . . . Terminals . | . . . . Fabricators . | . . . . Repair Stations . | . . . . Recycling Units . | . . . . Scanalyzers . | . . . . Garrison Access . | . . . . Data Cores Recovered . | . . . . Used . | . . . . Hacking Detections 1 | . 1 . . Full Trace Events . | . . . . Feedback Events . | . . . . Feedback Blocked . | . . . . Robot Schematics Acquired . | . . . . Robots Built . | . . . . Authchips . | . . . . Time . | . . . . Total Robot Build Rating . | . . . . Part Schematics Acquired . | . . . . Parts Built . | . . . . Authchips . | . . . . Time . | . . . . Total Part Build Rating . | . . . . Parts Repaired . | . . . . Time . | . . . . Parts Recycled . | . . . . Recycled Matter . | . . . . Retrieved Matter . | . . . . Retrieved Components . | . . . . Parts Scanalyzed . | . . . . Part Schematics Acquired . | . . . . Parts Damaged . | . . . . Bothacking | -11 -10 -9 -8 ------------ Run | Jun Mat Mat Mat Used RIF Installer . | . . . . Robots Hacked . | . . . . Non-combat . | . . . . Combat . | . . . . Robot Hacks Applied . | . . . . Relay Couplers Released . | . . . . Fabnet Peak Effective % . | . . . . Robots Rewired . | . . . . Allies Hacked . | . . . . Hacks Repelled . | . . . . Allies | -11 -10 -9 -8 -------- Run | Jun Mat Mat Mat Total Allies . | . . . . Largest Group . | . . . . Highest-Rated Group . | . . . . Highest-Rated Ally . | . . . . Total Orders . | . . . . Ally Attacks . | . . . . Total Damage . | . . . . Kills . | . . . . Allies Corrupted . | . . . . Allies Melted . | . . . . Intel | -11 -10 -9 -8 ------- Run | Jun Mat Mat Mat Robot Analysis Total . | . . . . Derelict Logs Recovered . | . . . . Drone Launches . | . . . . Drone Recoveries . | . . . . Exploration | -11 -10 -9 -8 ------------- Run | Jun Mat Mat Mat Turns Passed 786 | 62 142 364 218 Spaces Moved 622 | 51 142 279 150 Core 36 | 11 . . 25 Treads . | . . . . Legs 231 | . . 106 125 Wheels 354 | 40 142 172 . Hover . | . . . . Flight 1 | . . 1 . Fastest Speed 50 | 50 90 90 50 Average Speed 111 | 89 90 121 121 Slowest Speed 435 | 150 90 435 400 Overloaded Moves . | . . . . Propulsion Burnouts . | . . . . Robots Hopped . | . . . . Cave-ins Triggered . | . . . . Exploration Rate (%) 19 | 5 26 22 24 Regions Visited 3 Branch Regions . Pre-discovered Areas . | . . . . Known Exits Taken . | . . . . Unknown Exits Taken 3 | 1 1 1 . Scrap Searched . | . . . . Spaces Dug . | . . . . Terrain Destroyed . | . . . . Melee . | . . . . Projectile . | . . . . AOE . | . . . . Terrain Rammed . | . . . . Walls Destroyed . | . . . . Machines Disabled . | . . . . Actions | -11 -10 -9 -8 --------- Run | Jun Mat Mat Mat Total 697 | 63 156 298 180 Wait 19 | . 14 4 1 Move 619 | 50 141 278 150 Hop . | . . . . Pick Up 8 | 4 1 1 2 Fast Attach 18 | 7 . 5 6 Attach 2 | . . . 2 Detach 2 | 1 . 1 . Swap 5 | 1 . 4 . Drop 7 | . . 3 4 Fire 1 | . . 1 . Melee . | . . . . Ram . | . . . . Kick 16 | . . 1 15 Crush . | . . . . Escape Stasis . | . . . . Rewire . | . . . . Trap . | . . . . Miscellaneous . | . . . . Route ------- -11/Junkyard -10/Materials (discovered 3 exits: *Mat / Min x2) -9/Materials -8/Materials History --------- Turn | Location | Event 16 | -11/Junkyard | Discovered new exit (range 16) 63 | -11/Junkyard | Entered Materials 109 | -10/Materials | Identified exit to Mines 192 | -10/Materials | Discovered new exit (range 16) 205 | -10/Materials | Entered another Materials area 205 | -9/Materials | Evolved 2 slots: Utility x2 308 | -9/Materials | Build established: Mutant 556 | -9/Materials | Discovered new exit (range 15) 569 | -9/Materials | Entered another Materials area 569 | -8/Materials | Evolved 2 slots: Power x1, Propulsion x1 779 | -8/Materials | Core integrity fell below 50% 783 | -8/Materials | Core integrity fell below 20% 787 | -8/Materials | Destroyed by H-61 Shepherd with Heavy Assault Cannon Last Messages --------------- 00768_ Kicked G-47 Trooper out of the way. 00768_ G-47 Trooper knocked back. 00769_ Imp. Carbon-fiber Leg destroyed. 00769_ K-01 Serf collects debris. 00769_ Imp. Carbon-fiber Leg destroyed. 00769_ Kicked G-47 Trooper. 00771_ Imp. Carbon-fiber Leg destroyed. 00771_ Assault Rifle destroyed. 00771_ Critical hit (Burn: +37). 00773_ Ion Engine destroyed. 00773_ K-01 Serf collects debris. 00775_ Dropped Med. Storage Unit. 00776_ K-01 Serf collects debris. 00777_ Dropped Imp. Medium Armor Plating. 00777_ Critical hit (Burn: +37). 00779_ K-01 Serf cleans the Terminal. 00781_ K-01 Serf destroyed. 00782_ Penetrated by Slug. 00785_ U-05 Engineer knocked back. 00785_ Slug penetrates U-05 Engineer. Map ----- +----------------------------------------------------+ | ?????????????????????????????????#"S ]]=#?????? | | ?????????????????????????????????#""" #?????? | | ?????????????????????????????????# "" #?????? | | ??????????????????????? ?????????# != #?????? | | ??????????????????????# ????????#####+#####?????? | | ??????????????????????# ????????????# #########?? | | ??????????????????????# ???????????#%## !#? | | ??????????????????????# ???????#####%## """ #? | | ??????????????????????# ########"T"#%## """ #? | | ??????????????????????# %%%# """ #? | | ??????????????????????# + #? | | ??????????????????????# """ """ """ # #? | | ??????????????????????+ """ """ "T" # #? | | ??????????????????????# """ """ ! # "T" #? | | ??????????????????????# % # """ #? | | ??????????????????????# [#########? | | ??????????????????????# |=!%#????????? | | ??????????????????????# ! [ [!!%*#????????? | | ??????????????????????# % !=/%#????????? | | ??????????????????????# ###########% #????????? | | ??????????????????????# #?# # #????????? | | ??????????????????????# u #?# / #????????? | | ?????????????????????##x ### # #????????? | | ????????????# ######## x ########## #????????? | | ???????????# H #????????# #????????? | | ???????????# a gg g@ #???????# #???????? | | ???????????# %#???????# ?????? | | ???????????+ ####### #???????# T ??? | | ???????????? ????????#######???????# ? | | ???????????????????????????????????# ######### | | ???????????????????????????????????###+###???????? | | ?????????????????????????????????????????????????? | | ?????????????????????????????????????????????????? | | ?????????????????????????????????????????????????? | | ?????????????????????????????????????????????????? | | ?????????????????????????????????????????????????? | | ?????????????????????????????????????????????????? | | ?????????????????????????????????????????????????? | | ?????????????????????????????????????????????????? | | ?????????????????????????????????????????????????? | | ?????????????????????????????????????????????????? | | ?????????????????????????????????????????????????? | | ?????????????????????????????????????????????????? | | ?????????????????????????????????????????????????? | | ?????????????????????????????????????????????????? | | ?????????????????????????????????????????????????? | | ?????????????????????????????????????????????????? | | ?????????????????????????????????????????????????? | | | | | +----------------------------------------------------+ Best States ------------- Heat Dissipation 31 Energy Generation 19 Energy Capacity 390 Matter Stores 300 Matter Capacity 300 Sight Range 16 Terrain Scan Range 14 Terrain Scan Density 10 Armor Coverage 450 Evasion (%) 55 Item Schematics ----------------- None Robot Schematics ------------------ None Fabricated ------------ Nothing Alien Tech Used ----------------- None Achievements -------------- None Challenges ------------ None Game ------ Seed GrenadeConcussiveSource Manual? 0 Play Time 00:18:04 Cumulative 17.2 hours Start 2023.10.27 @ 17:44:42 End 2023.10.27 @ 18:05:48 Sessions 2 Manual Loads 0 Difficulty Rogue Special Mode None Game No. 27 Rogue 27 Adventurer 0 Explorer 0 Win Type - Total 0 Types 0/0/0/0/0/0/0/0/0 Lore% 18 Gallery% 28 Achievement% 20 Wizard Run 0 Options --------- ASCII 0 Keyboard 0 Movement Numpad Keybinds 0 Fullscreen 1 Font 18/TerminusBold Map View 76x50 Tactical HUD 1 Map Filters NONE Filters NONE Steam 1 RUN: f6691a37-67f3-4dd4-9b06-7a84f4b9e42f